fUST/lending_fUST_20251112
["ID","MTS","AMOUNT","RATE_DAILY","PERIOD"]
[393740568,1762959055056,-239.49,0.00040821,28]
[393740569,1762959055066,-634.798082,0.00040857,30]
[393740570,1762959055076,-150.59,0.0004086,120]
[393740571,1762959055086,-150.59,0.0004096,120]
[393740572,1762959055096,-392.35152514,0.00040999,120]
[393740573,1762959055106,-150.59,0.0004106,120]
[393740574,1762959055116,-720.0,0.00041079,90]
[393740575,1762959055126,-169.73,0.00041096,120]
[393740576,1762959055135,-629.78,0.00041096,120]
[393740577,1762959055144,-168.70380427,0.000411,120]
[393740578,1762959055154,-168.70380427,0.000411,120]
[393740579,1762959055163,-168.7,0.000411,120]
[393740580,1762959055174,-168.70380427,0.000411,120]
[393740581,1762959055183,-168.70380427,0.000411,120]
[393740582,1762959055193,-168.70380427,0.000411,120]
[393740583,1762959055202,-168.70380427,0.000411,120]
[393740584,1762959055212,-168.70380427,0.000411,120]
[393740585,1762959055221,-184.56314669,0.000411,120]
[393740586,1762959055231,-184.56314669,0.000411,120]
[393740587,1762959055241,-184.56,0.000411,120]
[393740588,1762959055250,-161.49275335,0.000411,120]
[393740589,1762959055260,-161.49275335,0.000411,120]
[393740590,1762959055270,-161.49275335,0.000411,120]
[393740591,1762959055280,-161.49275335,0.000411,120]
[393740592,1762959055292,-161.49275335,0.000411,120]
[393740593,1762959055302,-208.18738848,0.000411,120]
[393740594,1762959055312,-208.18,0.000411,120]
[393740595,1762959055321,-161.92352437,0.000411,120]
[393740596,1762959055330,-161.92352437,0.000411,120]
[393740597,1762959055339,-161.92352437,0.000411,120]
[393740598,1762959055349,-161.92352437,0.000411,120]
[393740599,1762959055359,-310.4590606,0.00041149,30]
[393740600,1762959055369,-300.2064069,0.00041149,30]
[393740601,1762959055379,-300.2064069,0.00041149,30]
[393740602,1762959055388,-300.2064069,0.00041149,30]
[393740603,1762959055397,-300.2064069,0.00041149,30]
[393740604,1762959055407,-300.2064069,0.00041149,30]
[393740605,1762959055416,-300.2064069,0.00041149,30]
[393740606,1762959055426,-300.2064069,0.00041149,30]
[393740607,1762959055435,-300.2064069,0.00041149,30]
[393740608,1762959055445,-300.2064069,0.00041149,30]
[393740609,1762959055454,-164.1285603,0.00041149,30]
[393740610,1762959055463,-164.1285603,0.00041149,30]
[393740611,1762959055473,-164.1285603,0.00041149,30]
[393740612,1762959055483,-164.1285603,0.00041149,30]
[393740613,1762959055492,-164.1285603,0.00041149,30]
[393740614,1762959055502,-164.1285603,0.00041149,30]
[393740615,1762959055511,-164.1285603,0.00041149,30]
[393740616,1762959055521,-164.1285603,0.00041149,30]
[393740617,1762959055530,-164.1285603,0.00041149,30]
[393740618,1762959055542,-150.59,0.0004116,120]
[393740619,1762959055551,-161.49275335,0.00041173,120]
[393740620,1762959055561,-4493.31,0.00041196,12]
[393740621,1762959055571,-2216.61,0.00041196,12]
[393740622,1762959055580,-1067.28,0.00041196,12]
[393740623,1762959055590,-202.0,0.0004122,57]
[393740624,1762959055600,-231.4873647,0.00041243,120]
[393740625,1762959055610,-250.0,0.00041248,10]
[393740626,1762959055623,-150.59,0.0004126,120]
[393740627,1762959055632,-150.97,0.00041349,60]
[393740628,1762959055642,-200.0,0.00041359,120]
[393740629,1762959055654,-151.0787037,0.0004136,120]
[393740630,1762959055664,-239.49,0.00041369,29]
[393740631,1762959055674,-600.0,0.00041545,60]
[393740632,1762959055684,-350.0,0.00041796,10]
[393740633,1762959055695,-748.27,0.00041802,12]
[393740634,1762959055706,-429.08699324,0.00041891,120]
[393740635,1762959055716,-161.92352437,0.00041895,120]
[393740636,1762959055726,-239.49,0.00041917,30]
[393740637,1762959055735,-164.1285603,0.00041971,30]
[393740638,1762959055745,-164.1285603,0.00041971,30]
[393740639,1762959055755,-164.1285603,0.00041971,30]
[393740640,1762959055764,-164.1285603,0.00041971,30]
[393740641,1762959055774,-164.1285603,0.00041971,30]
[393740642,1762959055783,-164.1285603,0.00041971,30]
[393740643,1762959055795,-164.1285603,0.00041971,30]
[393740644,1762959055805,-164.1285603,0.00041971,30]
[393740645,1762959055814,-164.1285603,0.00041971,30]
[393740646,1762959055823,-164.1285603,0.00041971,30]
[393740647,1762959055833,-164.1285603,0.00041971,30]
[393740648,1762959055843,-164.1285603,0.00041971,30]
[393740649,1762959055852,-164.1285603,0.00041971,30]
[393740650,1762959055861,-164.1285603,0.00041971,30]
[393740651,1762959055871,-164.1285603,0.00041971,30]
[393740652,1762959055881,-164.1285603,0.00041971,30]
[393740653,1762959055890,-164.1285603,0.00041971,30]
[393740654,1762959055900,-164.1285603,0.00041971,30]
[393740655,1762959055909,-164.1285603,0.00041971,30]
[393740656,1762959055918,-164.1285603,0.00041971,30]
[393740657,1762959055928,-164.1285603,0.00041971,30]
[393740658,1762959055938,-164.1285603,0.00041971,30]
[393740659,1762959055947,-4158.32,0.00042064,2]
[393740660,1762959055956,-168.70380427,0.00042102,120]
[393740661,1762959055966,-151.0,0.000422,120]
[393740662,1762959055976,-161.49275335,0.00042257,120]
[393740663,1762959055985,-450.0,0.00042344,10]
[393740664,1762959055995,-239.49,0.00042465,31]
[393740665,1762959056004,-25637.0,0.00042493,12]
[393740666,1762959056015,-600.0,0.00042641,60]
[393740667,1762959056024,-328.0625152,0.00042793,30]
[393740668,1762959056034,-50000.0,0.0004288,120]
[393740669,1762959056046,-550.0,0.00042892,10]
[393740670,1762959056055,-300.2064069,0.00042915,30]
[393740671,1762959056065,-1000.0,0.00043,120]
[393740672,1762959056074,-1000.0,0.00043,120]
[393740673,1762959056083,-286.64860402,0.00043,120]
[393740674,1762959056093,-500.0,0.00043,2]
[393740675,1762959056102,-239.49,0.00043013,32]
[393740676,1762959056111,-314.5411041,0.00043189,30]
[393740677,1762959056121,-879666.2884,0.0004322,30]
[393740678,1762959056130,-168.7,0.0004334,120]
[393740679,1762959056139,-161.49,0.0004334,120]
[393740680,1762959056148,-161.92,0.0004334,120]
[393740681,1762959056157,-650.0,0.0004344,10]
[393740682,1762959056167,-766381.03144769,0.0004344,30]
[393742327,1762960096941,4894.07,0.00032877,120]
[393742397,1762960232036,-150.0,0.00023252,2]
[393742398,1762960232048,-168.0,0.0002513,2]
[393742399,1762960232060,-160.0,0.00025199,2]
[393742400,1762960232072,-109.17907952,0.00025245,2]
[393742401,1762960232087,-58.82092048,0.00025245,2]
[393742402,1762960232099,-177.0,0.00025252,2]
[393742403,1762960232111,-1000.0,0.0002546,30]
[393742404,1762960232122,-168.0,0.00025912,2]
[393742405,1762960232133,-168.0,0.00026132,2]
[393742406,1762960232144,-168.0,0.00026353,2]
[393742407,1762960232155,-168.0,0.00026586,2]
[393742408,1762960232167,-168.0,0.0002662,2]
[393742409,1762960232182,-1597.96985388,0.00026773,2]
[393742410,1762960232194,-157.0,0.00026789,2]
[393742411,1762960232205,-170.0,0.00026789,2]
[393742412,1762960232216,-5189.61954701,0.0002679,2]
[393742413,1762960232228,-295.85,0.0002687,10]
[393742414,1762960232239,-246.55,0.0002687,10]
[393742415,1762960232252,-205.45,0.0002687,10]
[393742416,1762960232265,-500.0,0.00026872,2]
[393742417,1762960232276,-500.0,0.00026872,2]
[393742418,1762960232287,-500.0,0.00026872,2]
[393742419,1762960232298,-500.0,0.00026872,2]
[393742420,1762960232311,-500.0,0.00026872,2]
[393742421,1762960232322,-500.0,0.00026872,2]
[393742422,1762960232333,-500.0,0.00026872,2]
[393742423,1762960232343,-157.70293825,0.00026872,2]
[393742424,1762960232355,-500.0,0.00026872,2]
[393742425,1762960232366,-568.72883506,0.00026872,2]
[393742426,1762960232377,-500.0,0.00026872,2]
[393742427,1762960232387,-500.0,0.00026872,2]
[393742428,1762960232399,-501.21757056,0.00026872,2]
[393742429,1762960232410,-500.0,0.00026872,2]
[393742430,1762960232421,-500.0,0.00026872,2]
[393742431,1762960232437,-500.0,0.00026872,2]
[393742432,1762960232448,-500.0,0.00026872,2]
[393742433,1762960232460,-500.0,0.00026872,2]
[393742434,1762960232472,-500.0,0.00026872,2]
[393742435,1762960232484,-500.0,0.00026872,2]
[393742436,1762960232495,-500.13443248,0.00026872,2]
[393742437,1762960232507,-500.0,0.00026872,2]
[393742438,1762960232518,-500.0,0.00026872,2]
[393742439,1762960232531,-245.57997412,0.00026872,2]
[393742440,1762960232543,-500.0,0.00026872,2]
[393742441,1762960232555,-500.0,0.00026872,2]
[393742442,1762960232567,-500.0,0.00026872,2]
[393742443,1762960232579,-500.0,0.00026872,2]
[393742444,1762960232592,-500.0,0.00026872,2]
[393742445,1762960232604,-500.0,0.00026872,2]
[393742446,1762960232615,-500.0,0.00026872,2]
[393742447,1762960232627,-500.0,0.00026872,2]
[393742448,1762960232638,-500.0,0.00026872,2]
[393742449,1762960232649,-500.0,0.00026872,2]
[393742450,1762960232659,-500.0,0.00026872,2]
[393742451,1762960232670,-500.0,0.00026872,2]
[393742452,1762960232684,-500.0,0.00026872,2]
[393742453,1762960232695,-500.0,0.00026872,2]
[393742454,1762960232706,-500.0,0.00026872,2]
[393742455,1762960232719,-500.0,0.00026872,2]
[393742456,1762960232731,-500.0,0.00026872,2]
[393742457,1762960232755,-500.0,0.00026872,2]
[393742458,1762960232769,-500.0,0.00026872,2]
[393742459,1762960232781,-500.0,0.00026872,2]
[393742460,1762960232792,-500.0,0.00026872,2]
[393742461,1762960232804,-500.0,0.00026872,2]
[393742462,1762960232817,-500.0,0.00026872,2]
[393742463,1762960232829,-500.0,0.00026872,2]
[393742464,1762960232843,-500.0,0.00026872,2]
[393742465,1762960232856,-500.0,0.00026872,2]
[393742466,1762960232867,-500.0,0.00026872,2]
[393742467,1762960232882,-500.0,0.00026872,2]
[393742468,1762960232894,-500.0,0.00026872,2]
[393742469,1762960232906,-500.0,0.00026872,2]
[393742470,1762960232917,-500.0,0.00026873,2]
[393742471,1762960232928,-500.0,0.00026873,2]
[393742472,1762960232940,-500.0,0.00026873,2]
[393742473,1762960232951,-500.0,0.00026879,2]
[393742474,1762960232963,-65573.30797456,0.0002688,2]
[393742502,1762960238275,-203020.98000001,0.0002688,2]
[393742503,1762960238334,-274.37451531,0.0002688,2]
[393742504,1762960238351,-35424.49458178,0.0002688,2]
[393742505,1762960238365,-24580.59999999,0.0002688,2]
[393742506,1762960238379,-3006.72,0.0002688,2]
[393742507,1762960238394,-2739.5793,0.0002688,2]
[393742539,1762960240222,-171.21,0.0002688,10]
[393742542,1762960240264,-5230.75801785,0.0002688,2]
[393742544,1762960240276,-9504.39231402,0.0002688,2]
[393742846,1762960243317,-694.0900242,0.0002688,2]
[393743096,1762960246460,-1199.5943414,0.0002688,2]
[393743101,1762960246509,-2188.94678088,0.0002688,2]
[393743103,1762960246519,-777000.0,0.0002689,2]
[393743105,1762960246529,-166.72,0.000269,7]
[393743107,1762960246539,-1792.97,0.000269,7]
[393743109,1762960246548,-162.34,0.000269,14]
[393743110,1762960246558,-500.0,0.00026933,2]
[393743112,1762960246567,-500.0,0.00026933,2]
[393743114,1762960246576,-168.0,0.00026996,2]
[393743116,1762960246586,-168.0,0.00027186,2]
[393743118,1762960246595,-204.0,0.00027252,2]
[393743119,1762960246604,-300.0,0.00027427,30]
[393743121,1762960246614,-300.0,0.00027427,30]
[393743123,1762960246624,-300.0,0.00027427,30]
[393743125,1762960246633,-300.0,0.00027427,30]
[393743127,1762960246643,-300.0,0.00027427,30]
[393743129,1762960246653,-300.0,0.00027427,30]
[393743131,1762960246662,-300.0,0.00027427,30]
[393743132,1762960246671,-300.0,0.00027427,30]
[393743134,1762960246680,-300.0,0.00027427,30]
[393743136,1762960246690,-300.0,0.00027427,30]
[393743138,1762960246704,-300.0,0.00027427,30]
[393743140,1762960246714,-300.0,0.00027427,30]
[393743142,1762960246723,-300.0,0.00027427,30]
[393743144,1762960246733,-300.0,0.00027427,30]
[393743146,1762960246743,-300.0,0.00027427,30]
[393743148,1762960246752,-600.0,0.00027427,30]
[393743150,1762960246762,-260.99,0.000275,2]
[393743151,1762960246771,-413.0,0.00028984,2]
[393743153,1762960246781,-231.0,0.00029252,2]
[393743155,1762960246791,-495.18877181,0.0003,7]
[393743157,1762960246801,-720.0,0.0003017,30]
[393743159,1762960246811,-150.0,0.00031159,2]
[393743161,1762960246820,-258.0,0.00031252,2]
[393743163,1762960246831,-413.0,0.00031984,2]
[393743165,1762960246840,-864.0,0.00033187,30]
[393743167,1762960246850,-337.19395708,0.000332,117]
[393743169,1762960246859,-285.0,0.00033252,120]
[393743170,1762960246869,-249.5,0.00033991,2]
[393743172,1762960246878,-413.0,0.00034984,2]
[393743174,1762960246888,-5189.61954701,0.00035065,2]
[393743176,1762960246897,-1597.96985383,0.00035077,2]
[393743178,1762960246906,-312.0,0.00035252,120]
[393743180,1762960246916,-176.63067353,0.00035616,2]
[393743182,1762960246924,-1792.97,0.000357,14]
[393743183,1762960246934,-166.72,0.000358,7]
[393743185,1762960246945,-199.0,0.00035889,14]
[393743187,1762960246954,-504.39231402,0.00035889,60]
[393743189,1762960246965,-202.0,0.0003629,43]
[393743191,1762960246974,-1067.43057369,0.00036383,4]
[393743193,1762960246985,-150.0,0.000364,27]
[393743195,1762960246994,-199.0,0.00036437,15]
[393743197,1762960247003,-1000.0,0.00036505,30]
[393743199,1762960247013,-500.0,0.00036613,13]
[393743200,1762960247022,-500.0,0.00036613,13]
[393743202,1762960247032,-374.25,0.00036824,2]
[393743204,1762960247043,-199.0,0.00036985,16]
[393743206,1762960247052,-159.09,0.00037,14]
[393743208,1762960247062,-339.0,0.00037252,120]
[393743210,1762960247071,-3220.0,0.00037393,30]
[393743212,1762960247081,-260.99,0.000374,14]
[393743213,1762960247090,-199.0,0.00037533,17]
[393743215,1762960247099,-537.28650194,0.00037753,120]
[393743217,1762960247109,-413.0,0.00037984,2]
[393743219,1762960247118,-199.0,0.00038081,18]
[393743221,1762960247127,-202.68827361,0.00038629,19]
[393743223,1762960247136,-366.0,0.00039252,120]
[393743225,1762960247146,-499.0,0.00039656,2]
[393743226,1762960247155,-1000.0,0.00040156,90]
[393743228,1762960247165,-244.0,0.00040156,90]
[393743230,1762960247174,-337.19395704,0.00040559,120]
[393743232,1762960247184,-413.0,0.00040984,2]
[393743234,1762960247193,-393.0,0.00041252,120]
[393743236,1762960247203,-500.0,0.00041796,60]
[393743238,1762960247213,-147758.0,0.00042,120]
[393743240,1762960247222,-623.75,0.00042489,2]
[393743241,1762960247231,-500.0,0.00042892,60]
[393743243,1762960247240,-7355.94145821,0.000429,2]
[393743245,1762960247250,-851132.54860752,0.00042966,2]
[393743247,1762960247259,-171.07224,0.00042966,2]
[393743249,1762960247270,-150.0,0.00043,2]
[393743251,1762960247280,-500.0,0.00043,60]
[393743253,1762960247289,-420.0,0.00043252,120]
[393743255,1762960247298,-5189.61954701,0.0004334,2]
[393743256,1762960247308,-1597.96985383,0.00043381,28]
[393743258,1762960247320,-1792.97,0.000434,14]
[393743260,1762960247330,-619858.8109135,0.0004344,30]
[393743262,1762960247343,-10402.9992,0.0004344,30]
[393743865,1762960266011,1302.62918725,0.00017389,2]
[393743866,1762960273276,978.25341725,0.00017389,2]
[393743867,1762960297954,913.13811844,0.00017389,2]
[393743868,1762960305278,457.25334339,0.00017389,2]
[393743987,1762960444636,150.0,0.00036393,20]
[393744295,1762960582069,534.027859,0.00013699,2]
[393744299,1762960795514,573.0,0.00032877,120]
[393744311,1762960883019,200.0,0.00036454,30]
[393744338,1762961005568,1915.17137882,0.00017389,2]
[393744344,1762961067752,315.51331446,0.00036454,20]
[393744345,1762961074047,22958.46223607,0.00036454,120]
[393744475,1762961174752,180.30998352,0.00036454,120]
[393744496,1762961181045,200.0,0.00036454,30]
[393744515,1762961190795,1007.61860061,0.00036454,30]
[393744574,1762961244867,251.63142363,0.00036454,30]
[393744616,1762961257825,230.0639347,0.00036454,30]
[393744662,1762961280588,990.83117508,0.00036454,32]
[393744672,1762961298551,1723.86488873,0.00017389,2]
[393744692,1762961305154,777.69548689,0.00036454,120]
[393744694,1762961305811,169.46568872,0.00036454,20]
[393744699,1762961308144,245.53089495,0.00036454,90]
[393744716,1762961316580,165.52071512,0.00036454,120]
[393744746,1762961322573,165.75838593,0.00036454,30]
[393744753,1762961323944,999.999999,0.00036454,30]
[393744770,1762961403292,443.91049516,0.00036454,30]
[393744827,1762961432281,-1723.86488873,0.00018803,2]
[393744828,1762961432291,-150.0,0.00019526,2]
[393744829,1762961432301,-534.027859,0.00020187,2]
[393744830,1762961432311,-1723.86488873,0.00020217,2]
[393744831,1762961432320,-177.0,0.00021526,2]
[393744832,1762961432330,-1723.86488873,0.00021631,2]
[393744833,1762961432340,-160.0,0.00022998,2]
[393744834,1762961432350,-1200.0,0.00023044,2]
[393744835,1762961432360,-1723.86488873,0.00023045,2]
[393744836,1762961432369,-1200.0,0.00023294,2]
[393744837,1762961432379,-204.0,0.00023526,2]
[393744838,1762961432388,-300.0,0.0002376,20]
[393744839,1762961432398,-300.0,0.0002376,20]
[393744840,1762961432409,-300.0,0.0002376,20]
[393744841,1762961432419,-300.0,0.0002376,20]
[393744842,1762961432428,-300.0,0.0002376,20]
[393744843,1762961432437,-300.0,0.0002376,20]
[393744844,1762961432446,-300.0,0.0002376,20]
[393744845,1762961432456,-1723.86488873,0.00024459,2]
[393744846,1762961432465,-500.0,0.00024973,2]
[393744847,1762961432475,-636.99,0.0002499,10]
[393744848,1762961432484,-530.83,0.0002499,10]
[393744849,1762961432493,-442.36,0.0002499,10]
[393744850,1762961432503,-500.63488592,0.00025,2]
[393744851,1762961432512,-1080.33214344,0.00025,2]
[393744852,1762961432522,-2661.95628258,0.00025,2]
[393744853,1762961432531,-21141.15436941,0.00025,2]
[393744854,1762961432540,-10364.0,0.00025,2]
[393744855,1762961432550,-667.77106975,0.00025,2]
[393744856,1762961432563,-600.0,0.00025,2]
[393744857,1762961432573,-215406.24114645,0.00025,2]
[393744858,1762961432582,-407.62247892,0.00025,2]
[393744859,1762961432592,-385.12,0.00025,14]
[393744860,1762961432601,-964.0,0.00025279,2]
[393744861,1762961432611,-5000.0,0.00025393,2]
[393744862,1762961432620,-1000.0,0.000255,2]
[393744863,1762961432632,-585.02546262,0.00025521,2]
[393744864,1762961432641,-231.0,0.00025526,2]
[393744865,1762961432651,-1723.86488873,0.00025873,2]
[393744866,1762961432662,-771.7898741,0.00026,3]
[393744867,1762961432672,-1649.41638041,0.00026,30]
[393744868,1762961432682,-481.44814392,0.00026298,2]
[393744869,1762961432691,-678.88134991,0.00026298,2]
[393744870,1762961432701,-678.88134991,0.00026375,5]
[393744871,1762961432711,-481.44814392,0.00026375,5]
[393744872,1762961432721,-678.88134991,0.00026451,9]
[393744873,1762961432732,-481.44814392,0.00026451,9]
[393744874,1762961432743,-678.88134991,0.00026527,13]
[393744875,1762961432758,-481.44814392,0.00026527,13]
[393744876,1762961432768,-678.88134991,0.00026604,16]
[393744877,1762961432778,-481.44814392,0.00026604,16]
[393744878,1762961432788,-2402.9254711,0.0002667,2]
[393744879,1762961432799,-534.027859,0.00026676,2]
[393744880,1762961432809,-678.88134991,0.0002668,20]
[393744881,1762961432819,-481.44814392,0.0002668,20]
[393744882,1762961432830,-678.88134991,0.00026757,24]
[393744883,1762961432840,-481.44814392,0.00026757,24]
[393744884,1762961432850,-500.0,0.00026769,2]
[393744885,1762961432859,-172.99,0.00026769,14]
[393744886,1762961432869,-500.0,0.0002677,2]
[393744887,1762961432879,-500.0,0.0002677,2]
[393744888,1762961432888,-500.0,0.0002677,2]
[393744889,1762961432897,-500.0,0.0002677,2]
[393744890,1762961432908,-500.0,0.0002677,2]
[393744891,1762961432917,-500.0,0.0002677,2]
[393744892,1762961432926,-500.0,0.0002677,2]
[393744893,1762961432936,-500.0,0.0002677,2]
[393744894,1762961432945,-500.0,0.0002677,2]
[393744895,1762961432956,-500.0,0.0002677,2]
[393744896,1762961432966,-500.0,0.0002677,2]
[393744897,1762961432975,-500.0,0.0002677,2]
[393744898,1762961432985,-500.0,0.0002677,2]
[393744899,1762961432995,-500.0,0.0002677,2]
[393744900,1762961433004,-500.0,0.0002677,2]
[393744901,1762961433014,-500.0,0.0002677,2]
[393744902,1762961433028,-500.0,0.0002677,2]
[393744903,1762961433038,-500.0,0.0002677,2]
[393744904,1762961433047,-500.0,0.0002677,2]
[393744905,1762961433057,-500.0,0.0002677,2]
[393744906,1762961433067,-500.0,0.0002677,2]
[393744907,1762961433076,-500.0,0.0002677,2]
[393744908,1762961433086,-161.96507139,0.0002677,2]
[393744909,1762961433095,-500.0,0.0002677,2]
[393744910,1762961433105,-500.0,0.0002677,2]
[393744911,1762961433114,-500.0,0.0002677,2]
[393744912,1762961433124,-500.0,0.0002677,2]
[393744913,1762961433135,-500.0,0.0002677,2]
[393744914,1762961433144,-500.0,0.0002677,2]
[393744915,1762961433153,-500.0,0.0002677,2]
[393744916,1762961433164,-500.0,0.0002677,2]
[393744917,1762961433173,-500.0,0.0002677,2]
[393744918,1762961433183,-500.0,0.0002677,2]
[393744919,1762961433192,-500.0,0.0002677,2]
[393744920,1762961433201,-500.0,0.0002677,2]
[393744921,1762961433211,-500.0,0.0002677,2]
[393744922,1762961433221,-500.0,0.0002677,2]
[393744923,1762961433230,-500.0,0.0002677,2]
[393744924,1762961433240,-500.0,0.0002677,2]
[393744925,1762961433250,-500.0,0.0002677,2]
[393744926,1762961433260,-500.0,0.0002677,2]
[393744927,1762961433270,-500.0,0.0002677,2]
[393744928,1762961433279,-500.0,0.0002677,2]
[393744929,1762961433289,-540.04162415,0.0002677,2]
[393744930,1762961433299,-429156.051709,0.0002677,2]
[393744931,1762961433309,-500.0,0.00026773,2]
[393744932,1762961433318,-500.0,0.00026773,2]
[393744933,1762961433327,-651150.97439632,0.0002678,2]
[393744972,1762961438322,-500.0,0.00024999,2]
[393744974,1762961438333,-400.45329772,0.00024999,2]
[393744976,1762961438342,-251.18868417,0.00024999,2]
[393744977,1762961438352,-500.0,0.00024999,2]
[393744979,1762961438363,-500.0,0.00024999,2]
[393744982,1762961438374,-294.95478174,0.00024999,2]
[393744983,1762961438384,-500.0,0.00024999,2]
[393744986,1762961438395,-200.0,0.00024999,2]
[393744987,1762961438406,-611.24639673,0.00024999,2]
[393744989,1762961438420,-2689.32664969,0.0002678,2]
[393744992,1762961438432,-123159.69895399,0.0002678,2]
[393744994,1762961438443,-160.0,0.00026796,2]
[393744995,1762961438453,-166.73,0.000268,7]
[393744997,1762961438463,-1394.53,0.000268,7]
[393744999,1762961438474,-678.88134991,0.00026833,28]
[393745001,1762961438485,-481.44814392,0.00026833,28]
[393745003,1762961438497,-678.88134991,0.00026909,31]
[393745005,1762961438507,-481.44814392,0.00026909,31]
[393745006,1762961438517,-678.88134991,0.00026986,35]
[393745008,1762961438527,-481.44814392,0.00026986,35]
[393745010,1762961438537,-678.88134991,0.00027062,39]
[393745012,1762961438547,-481.44814392,0.00027062,39]
[393745014,1762961438557,-678.88134991,0.00027138,42]
[393745016,1762961438566,-481.44814392,0.00027138,42]
[393745018,1762961438577,-385.12,0.000272,14]
[393745020,1762961438586,-678.88134991,0.00027215,46]
[393745022,1762961438596,-481.44814392,0.00027215,46]
[393745024,1762961438606,-1723.86488873,0.00027287,2]
[393745026,1762961438615,-678.88134991,0.00027291,50]
[393745028,1762961438625,-481.44814392,0.00027291,50]
[393745029,1762961438634,-1000.0,0.00027321,2]
[393745030,1762961438644,-1000.0,0.00027321,2]
[393745031,1762961438654,-260.0,0.00027344,2]
[393745032,1762961438667,-678.88134991,0.00027367,54]
[393745034,1762961438677,-481.44814392,0.00027367,54]
[393745035,1762961438687,-199.44789892,0.0002739,2]
[393745037,1762961438698,-564.55132604,0.0002739,7]
[393745039,1762961438708,-678.88134991,0.00027444,57]
[393745041,1762961438718,-481.44814392,0.00027444,57]
[393745043,1762961438727,-1549.18043734,0.000275,2]
[393745045,1762961438737,-151.0,0.00027507,2]
[393745047,1762961438748,-550.0,0.00027507,2]
[393745049,1762961438761,-678.88134991,0.0002752,61]
[393745051,1762961438771,-481.44814392,0.0002752,61]
[393745053,1762961438781,-258.0,0.00027526,2]
[393745055,1762961438792,-151.0,0.00027562,2]
[393745057,1762961438802,-550.0,0.00027562,2]
[393745059,1762961438811,-678.88134991,0.00027597,65]
[393745061,1762961438821,-481.44814392,0.00027597,65]
[393745062,1762961438832,-151.0,0.00027617,2]
[393745064,1762961438841,-550.0,0.00027617,2]
[393745066,1762961438851,-237.87236269,0.00027671,2]
[393745068,1762961438861,-550.0,0.00027671,2]
[393745070,1762961438871,-678.88134991,0.00027673,69]
[393745072,1762961438881,-481.44814392,0.00027673,69]
[393745074,1762961438891,-228.52175445,0.00027691,7]
[393745076,1762961438902,-550.0,0.00027726,2]
[393745078,1762961438912,-678.88134991,0.00027749,72]
[393745080,1762961438923,-481.44814392,0.00027749,72]
[393745082,1762961438934,-550.0,0.00027781,2]
[393745084,1762961438944,-678.88134991,0.00027826,76]
[393745086,1762961438954,-481.44814392,0.00027826,76]
[393745088,1762961438964,-550.0,0.00027836,2]
[393745090,1762961438975,-1500.0,0.00027868,5]
[393745092,1762961438986,-1500.0,0.00027868,5]
[393745093,1762961438997,-550.0,0.00027891,2]
[393745095,1762961439007,-360.0,0.00027892,2]
[393745097,1762961439018,-678.88134991,0.00027902,80]
[393745099,1762961439028,-481.44814392,0.00027902,80]
[393745101,1762961439038,-550.0,0.00027945,2]
[393745103,1762961439048,-678.88134991,0.00027978,83]
[393745105,1762961439059,-481.44814392,0.00027978,83]
[393745107,1762961439069,-2153.05477311,0.00028,2]
[393745109,1762961439079,-550.0,0.00028,2]
[393745111,1762961439090,-678.88134991,0.00028055,87]
[393745112,1762961439100,-481.44814392,0.00028055,87]